bitfinex/quotes_BTCUSD_20220303
["timestamp","ask_amount","ask_price","bid_price","bid_amount"]
[1646281370344,0.05862483,43481.0,43474.0,0.3556]
[1646281370548,0.05862483,43481.0,43473.0,0.4164]
[1646281370744,0.05862483,43481.0,43473.0,0.1164]
[1646281370745,0.05846947,43481.0,43473.0,0.1164]
[1646281370944,0.26388984,43475.0,43473.0,0.1164]
[1646281371144,0.26388984,43475.0,43470.0,0.2365]
[1646281371350,0.057548,43476.0,43470.0,0.2365]
[1646281371546,0.02317828,43480.0,43470.0,0.5365]
[1646281371845,0.00014828,43480.0,43470.0,0.71802209]
[1646281372045,0.00092847,43481.0,43470.0,0.5365]
[1646281372348,0.00014829,43477.0,43470.0,0.5365]
[1646281372544,0.22091998,43477.0,43470.0,0.5365]
[1646281372944,0.00014829,43477.0,43470.0,0.69363668]
[1646281373344,0.05847047,43481.0,43470.0,0.69363668]
[1646281373547,0.00014829,43476.0,43470.0,0.69363668]
[1646281373945,0.00014829,43476.0,43470.0,0.2365]
[1646281374392,0.05847047,43481.0,43470.0,0.2365]
[1646281374794,0.00014988,43475.0,43470.0,0.2365]
[1646281375096,0.00014988,43475.0,43473.0,0.1890165]
[1646281375295,0.00014988,43475.0,43470.0,0.2365]
[1646281375696,0.05847047,43481.0,43470.0,0.2365]
[1646281375994,0.00014988,43475.0,43471.0,0.3]
[1646281376195,0.00014988,43475.0,43472.0,0.18648564]
[1646281376797,0.28731331,43479.0,43470.0,0.5365]
[1646281377096,0.00014988,43476.0,43470.0,0.5365]
[1646281377700,0.00014988,43476.0,43475.0,0.16478623]
[1646281377941,0.00014988,43476.0,43471.0,0.057536]
[1646281378139,0.02303,43480.0,43471.0,0.057536]
[1646281378340,0.00013464,43478.0,43471.0,0.05741817]
[1646281378739,0.00013464,43478.0,43472.0,0.21084405]
[1646281378941,0.00013464,43478.0,43472.0,0.40887465]
[1646281379340,0.02303,43480.0,43472.0,0.40887465]
[1646281379540,0.00092847,43481.0,43472.0,0.40887465]
[1646281379541,0.00013464,43477.0,43472.0,0.40887465]
[1646281379839,0.00013464,43477.0,43472.0,0.1980306]
[1646281380040,0.00013464,43477.0,43472.0,0.2020306]
[1646281380442,0.00092847,43481.0,43472.0,0.2020306]
[1646281380646,0.00013464,43477.0,43473.0,0.3]
[1646281381735,0.00092847,43481.0,43473.0,0.3]
[1646281381937,0.00113472,43477.0,43476.0,0.28738196]
[1646281382135,0.00113472,43477.0,43473.0,0.3]
[1646281382738,0.00113472,43477.0,43471.0,0.1173]
[1646281382942,0.001,43477.0,43471.0,0.1173]
[1646281383140,0.05868171,43477.0,43471.0,0.34691002]
[1646281383342,0.05768171,43477.0,43471.0,0.22961002]
[1646281384141,0.057546,43477.0,43471.0,0.22961002]
[1646281384344,0.00013572,43476.0,43471.0,0.22961002]
[1646281385354,0.057546,43477.0,43471.0,0.22951002]
[1646281385560,0.0001357,43476.0,43471.0,0.22951002]
[1646281385756,0.0001357,43476.0,43470.0,0.45628589]
[1646281385956,0.0001357,43476.0,43471.0,0.003]
[1646281386556,0.2417474,43480.0,43471.0,0.003]
[1646281386757,0.00013539,43476.0,43471.0,0.003]
[1646281387357,0.00013539,43476.0,43470.0,0.2365]
[1646281387757,0.5417474,43480.0,43470.0,0.2365]
[1646281387957,0.00013539,43475.0,43470.0,0.2365]
[1646281388857,0.5417474,43480.0,43470.0,0.2365]
[1646281389087,0.00013539,43475.0,43470.0,0.2365]
[1646281389293,0.00013539,43475.0,43470.0,0.2395]
[1646281389689,0.00013539,43475.0,43472.0,0.23242127]
[1646281389886,0.00013539,43475.0,43470.0,0.003]
[1646281390089,0.06038432,43476.0,43470.0,0.003]
[1646281390289,0.06051941,43476.0,43470.0,0.003]
[1646281390490,0.06051941,43476.0,43468.0,0.59320195]
[1646281390692,0.00013509,43476.0,43468.0,0.59320195]
[1646281391090,0.00013509,43476.0,43469.0,0.3556]
[1646281391289,0.3,43479.0,43468.0,0.84091048]
[1646281391493,0.00013509,43474.0,43468.0,0.84091048]
[1646281391690,0.00013509,43474.0,43468.0,0.59320195]
[1646281392390,0.06377234,43476.0,43468.0,0.59320195]
[1646281392592,0.05755,43474.0,43465.0,0.15848149]
[1646281392870,0.00013509,43473.0,43466.0,0.27884195]
[1646281393470,0.00013509,43473.0,43469.0,0.1924232]
[1646281393669,0.05755,43474.0,43469.0,0.1924232]
[1646281394170,0.00013511,43472.0,43469.0,0.1924232]
[1646281394869,0.13905047,43481.0,43469.0,0.1924232]
[1646281395070,0.00013511,43473.0,43469.0,0.1924232]
[1646281396068,0.23489397,43476.0,43469.0,0.1964232]
[1646281396269,0.13905047,43481.0,43469.0,0.1964232]
[1646281396270,0.00013511,43473.0,43471.0,0.23936543]
[1646281396470,0.00013511,43473.0,43469.0,0.1964232]
[1646281397400,0.21457128,43476.0,43472.0,0.25121438]
[1646281397600,9.706e-05,43473.0,43469.0,0.1924232]
[1646281398006,9.706e-05,43473.0,43472.0,0.002]
[1646281398404,0.21457128,43476.0,43472.0,0.002]
[1646281398802,9.706e-05,43475.0,43472.0,0.002]
[1646281399704,0.21457128,43476.0,43472.0,0.002]
[1646281399903,0.21471599,43476.0,43472.0,0.002]
[1646281400954,0.21457128,43476.0,43472.0,0.002]
[1646281401146,0.21472397,43476.0,43472.0,0.002]
[1646281401349,0.21472397,43476.0,43470.0,0.23007659]
[1646281401747,0.21472397,43476.0,43469.0,0.1924232]
[1646281401949,0.21672397,43476.0,43469.0,0.1924232]
[1646281402146,0.21657128,43476.0,43469.0,0.1924232]
[1646281402346,0.00015269,43475.0,43469.0,0.1924232]
[1646281403346,0.21657128,43476.0,43469.0,0.1924232]
[1646281403551,0.00014214,43474.0,43469.0,0.1924232]
[1646281404392,0.21457128,43476.0,43469.0,0.1924232]
[1646281404789,0.00013332,43474.0,43469.0,0.1924232]
[1646281405389,0.00013332,43474.0,43469.0,0.34753617]
[1646281405590,0.21457128,43476.0,43469.0,0.1924232]
[1646281405991,0.00013332,43474.0,43469.0,0.1954232]
[1646281406591,0.00013332,43474.0,43469.0,0.19531214]
[1646281406790,0.057545,43478.0,43469.0,0.19531214]
[1646281407191,0.00013539,43474.0,43469.0,0.19231214]
[1646281408080,0.27077865,43476.0,43472.0,0.22324027]
[1646281408282,0.00013634,43474.0,43472.0,0.22324027]
[1646281408479,0.00013634,43474.0,43469.0,0.19531214]
[1646281409279,0.13905047,43481.0,43469.0,0.19231214]
[1646281409479,0.13905047,43481.0,43476.0,0.15857167]
[1646281409680,0.20819708,43478.0,43476.0,0.15857167]
[1646281409883,0.00054526,43480.0,43476.0,0.15857167]
[1646281410481,0.02395847,43481.0,43476.0,0.15857167]
[1646281410683,0.00013586,43480.0,43476.0,0.15857167]
[1646281411491,0.23827545,43479.0,43470.0,0.22635146]
[1646281411693,0.057546,43477.0,43470.0,0.22635146]
[1646281412494,0.057546,43477.0,43473.0,0.20922414]
[1646281413096,0.05768184,43477.0,43473.0,0.20922414]
[1646281414097,0.061546,43477.0,43473.0,0.20922414]
[1646281414295,0.06168194,43477.0,43473.0,0.20922414]
[1646281414495,0.06168194,43477.0,43467.0,0.24380116]
[1646281415359,0.061546,43477.0,43467.0,0.24380116]
[1646281415561,0.00013586,43474.0,43467.0,0.24380116]
[1646281415760,0.00013586,43474.0,43471.0,0.21461886]
[1646281415960,0.00013586,43474.0,43473.0,0.001]
[1646281416462,0.23827545,43479.0,43475.0,0.24917432]
[1646281416665,0.05846947,43481.0,43475.0,0.24917432]
[1646281416666,0.00013586,43476.0,43475.0,0.24917432]
[1646281416863,0.00013586,43476.0,43473.0,0.001]
[1646281417265,0.00013586,43476.0,43471.0,0.21461886]
[1646281417661,0.05846947,43481.0,43471.0,0.21461886]
[1646281417861,0.05846947,43481.0,43477.0,0.20377987]
[1646281418063,0.00092847,43481.0,43477.0,0.20377987]
[1646281418864,0.00092847,43481.0,43479.0,0.19226751]
[1646281419105,0.0010649,43481.0,43479.0,0.19226751]
[1646281420099,0.00092847,43481.0,43479.0,0.19226751]
[1646281427297,0.00092847,43481.0,43471.0,0.116]
[1646281427703,0.05847513,43481.0,43471.0,0.116]
[1646281427897,0.20382248,43475.0,43471.0,0.116]
[1646281428100,0.20382248,43475.0,43469.0,0.2345]
[1646281428700,0.20382248,43475.0,43468.0,0.1862]
[1646281428899,0.00013636,43474.0,43468.0,0.1862]
[1646281429302,0.11524936,43474.0,43468.0,0.1862]
[1646281429501,0.00013636,43474.0,43468.0,0.1862]
[1646281429703,0.20382248,43475.0,43468.0,0.1862]
[1646281429900,0.00013637,43473.0,43468.0,0.1862]
[1646281430346,0.00013637,43473.0,43469.0,0.15624767]
[1646281430746,0.00013637,43473.0,43468.0,0.1862]
[1646281431048,7.708e-05,43469.0,43468.0,0.1862]
[1646281432051,7.708e-05,43469.0,43468.0,0.37685147]
[1646281433449,7.708e-05,43469.0,43468.0,0.37285147]
[1646281435090,7.708e-05,43469.0,43468.0,0.78133296]
[1646281435689,7.708e-05,43469.0,43468.0,1.27132704]
[1646281435892,0.00092847,43481.0,43470.0,0.02303]
[1646281435893,0.00014546,43471.0,43470.0,0.02303]
[1646281436091,0.00014546,43471.0,43470.0,0.87065363]
[1646281436492,0.00014546,43471.0,43470.0,0.98765363]
[1646281436891,0.00039271,43481.0,43471.0,0.02303]
[1646281437094,0.00039271,43481.0,43479.0,0.17356828]
[1646281438157,0.00339271,43481.0,43479.0,0.17356828]
[1646281438355,0.0560786,43486.0,43479.0,0.17356828]
[1646281438552,0.0560786,43486.0,43477.0,0.22120482]
[1646281438755,0.1136176,43486.0,43477.0,0.22120482]
[1646281439053,0.0560786,43486.0,43477.0,0.22120482]
[1646281439755,0.0560786,43486.0,43480.0,0.19035457]
[1646281440856,0.0001442,43485.0,43477.0,0.22120482]
[1646281441694,0.0560786,43486.0,43477.0,0.22120482]
[1646281441895,9.548e-05,43484.0,43477.0,0.22120482]
[1646281442096,9.548e-05,43484.0,43477.0,0.005]
[1646281442798,0.1136176,43486.0,43477.0,0.005]
[1646281443196,9.548e-05,43484.0,43477.0,0.005]
[1646281443395,9.548e-05,43484.0,43476.0,0.15984272]
[1646281443797,0.057539,43482.0,43471.0,0.2228]
[1646281443999,0.3,43481.0,43471.0,0.2228]
[1646281444198,0.415091,43481.0,43471.0,0.2228]
[1646281444397,0.115091,43481.0,43471.0,0.2228]
[1646281444598,0.25484654,43478.0,43471.0,0.2228]
[1646281444802,0.25484654,43478.0,43471.0,0.2278]
[1646281444803,0.357552,43477.0,43471.0,0.2278]
[1646281444999,0.41510356,43477.0,43471.0,0.2278]
[1646281445199,0.49568256,43477.0,43471.0,0.005]
[1646281445451,0.06923,43476.0,43471.0,0.005]
[1646281445848,0.0531434,43473.0,43471.0,0.005]
[1646281446047,0.0531434,43473.0,43469.0,0.00023124]
[1646281446048,0.3,43472.0,43469.0,0.00023124]
[1646281446248,0.357564,43472.0,43469.0,0.00023124]
[1646281446650,0.115121,43472.0,43469.0,0.00023124]
[1646281446851,0.24600211,43471.0,43469.0,0.00023124]
[1646281447851,0.438151,43472.0,43469.0,0.00023124]
[1646281448251,0.06775381,43470.0,43469.0,0.00023124]
[1646281450098,0.07175381,43470.0,43469.0,0.00023124]
[1646281451301,0.004,43470.0,43469.0,0.00023124]
[1646281451501,0.1,43471.0,43469.0,0.00023124]
[1646281452101,0.238151,43472.0,43469.0,0.00023124]
[1646281452601,0.0704399,43470.0,43469.0,0.00023124]
[1646281452854,0.4704399,43470.0,43469.0,0.00023124]
[1646281453259,0.5166399,43470.0,43469.0,0.00023124]
[1646281453655,0.71390549,43470.0,43469.0,0.00023124]
[1646281454258,0.71190549,43470.0,43469.0,0.00023124]
[1646281455059,0.5146399,43470.0,43469.0,0.00023124]
[1646281455456,0.5116399,43470.0,43469.0,0.00023124]
[1646281456159,0.73649564,43470.0,43469.0,0.00023124]
[1646281456458,0.95,43469.0,43464.0,0.00013419]
[1646281456714,0.057577,43466.0,43464.0,0.00013419]
[1646281456914,0.3462,43465.0,43464.0,0.00013419]
[1646281457419,0.06077823,43457.0,43455.0,0.1233]
[1646281457615,0.05757928,43456.0,43448.0,1.20194996]
[1646281457813,0.0575042,43456.0,43448.0,0.71844996]
[1646281458013,0.06923,43458.0,43448.0,0.71844996]
[1646281458215,0.002,43457.0,43448.0,0.71844996]
[1646281458416,0.002,43457.0,43448.0,0.71344996]
[1646281458614,0.23688908,43452.0,43448.0,0.71344996]
[1646281458815,0.23688908,43452.0,43450.0,0.00013423]
[1646281459019,0.3,43451.0,43450.0,0.00013423]
[1646281459215,0.0462,43451.0,43450.0,0.00013423]
[1646281459717,0.0462,43451.0,43448.0,0.71344996]
[1646281459718,0.1462,43451.0,43448.0,0.71344996]
[1646281459918,0.1462,43451.0,43448.0,0.71358394]
[1646281460117,0.20679072,43451.0,43448.0,0.71358394]
[1646281460963,0.20679072,43451.0,43448.0,0.71344996]
[1646281461160,0.32197572,43451.0,43448.0,0.71344996]
[1646281461460,0.31897572,43451.0,43448.0,0.71344996]
[1646281461658,0.1462,43451.0,43448.0,0.71344996]
[1646281461858,0.16012463,43451.0,43448.0,0.71344996]
[1646281462059,0.1462,43451.0,43448.0,0.71344996]
[1646281462461,0.203786,43451.0,43448.0,0.71344996]
[1646281462758,0.203786,43451.0,43448.0,0.70844996]
[1646281463260,0.1462,43451.0,43448.0,0.70844996]
[1646281463661,0.0462,43451.0,43448.0,0.70844996]
[1646281463859,0.1462,43451.0,43448.0,0.70844996]
[1646281464508,0.1462,43451.0,43442.0,0.21120507]
[1646281464708,0.0462,43451.0,43447.0,0.00013337]
[1646281465411,0.0462,43451.0,43450.0,0.2484348]
[1646281465608,0.17150463,43455.0,43450.0,0.42812847]
[1646281465609,0.11392463,43455.0,43450.0,0.42812847]
[1646281465810,0.261348,43460.0,43450.0,0.42812847]
[1646281466015,0.11392463,43462.0,43450.0,0.42812847]
[1646281466309,0.11392463,43464.0,43456.0,0.16092248]
[1646281466511,0.11392463,43466.0,43457.0,0.26495855]
[1646281466713,0.115132,43466.0,43457.0,0.26495855]
[1646281467111,0.20589653,43468.0,43459.0,0.00013347]
[1646281467510,0.28424361,43466.0,43459.0,0.00013347]
[1646281468150,0.28924361,43466.0,43457.0,0.26495855]
[1646281468349,0.28924361,43466.0,43460.0,0.00013346]
[1646281468749,0.105,43466.0,43460.0,0.00013346]
[1646281468950,0.005,43466.0,43460.0,0.00013346]
[1646281469350,0.057568,43464.0,43457.0,0.26495855]
[1646281469950,0.23198635,43463.0,43457.0,0.26495855]
[1646281470752,0.23198635,43463.0,43458.0,0.00013344]
[1646281471157,0.058568,43464.0,43458.0,0.00013344]
[1646281471355,0.057564,43464.0,43458.0,0.00013344]
[1646281471808,0.35756021,43471.0,43457.0,0.26495855]
[1646281471809,0.1,43470.0,43457.0,0.26495855]
[1646281472007,0.1,43470.0,43459.0,0.00013344]
[1646281472407,0.1,43470.0,43464.0,0.19586493]
[1646281473209,0.1,43470.0,43464.0,0.19599835]
[1646281473410,0.22621946,43467.0,43464.0,0.19599835]
[1646281474208,0.057559,43468.0,43464.0,0.19586493]
[1646281474410,0.09758153,43472.0,43464.0,0.19586493]
[1646281474610,0.19758153,43472.0,43464.0,0.19586493]
[1646281474808,0.1974935,43472.0,43464.0,0.19586493]
[1646281475208,0.1974935,43472.0,43469.0,0.28891138]
[1646281475663,0.0974935,43472.0,43469.0,0.28891138]
[1646281475854,0.0974935,43472.0,43464.0,0.19599803]
[1646281475855,0.1974935,43472.0,43464.0,0.19599803]
[1646281476659,0.1974935,43472.0,43464.0,0.19586493]
[1646281476857,0.0974935,43472.0,43464.0,0.19599803]
[1646281477057,0.1974935,43472.0,43464.0,0.19599803]
[1646281477260,0.0974935,43472.0,43464.0,0.19599803]
[1646281477557,0.0924935,43472.0,43464.0,0.19599803]
[1646281477757,0.0924935,43472.0,43464.0,0.19086493]
[1646281477957,0.0924935,43472.0,43464.0,0.1909981]
[1646281478162,0.003,43472.0,43465.0,0.86333482]
[1646281478363,0.05,43476.0,43469.0,0.43143147]
[1646281478559,0.00054212,43480.0,43471.0,0.18143147]
[1646281478858,0.00054212,43480.0,43474.0,0.3556]
[1646281479119,0.26445426,43485.0,43480.0,0.25479982]
[1646281479327,0.00067767,43484.0,43480.0,0.25479982]
[1646281479520,0.00067767,43484.0,43475.0,0.51478053]
[1646281480216,0.07200648,43484.0,43475.0,0.3]
[1646281480417,0.0721425,43484.0,43475.0,0.3]
[1646281480616,0.0721425,43484.0,43479.0,0.20533118]
[1646281481018,0.0697899,43484.0,43479.0,0.20533118]
[1646281481219,0.00013602,43484.0,43479.0,0.20533118]
[1646281481422,0.057535,43485.0,43480.0,0.2003542]
[1646281481622,0.057535,43485.0,43479.0,0.20533118]
[1646281482218,0.057535,43485.0,43479.0,0.20833118]
[1646281483450,0.057535,43485.0,43479.0,0.20533118]
[1646281483952,0.0576855,43485.0,43479.0,0.20533118]
[1646281484352,0.0576855,43485.0,43479.0,0.20833118]
[1646281484950,0.057535,43485.0,43479.0,0.20833118]
[1646281485351,0.05768862,43485.0,43479.0,0.20833118]
[1646281485550,0.05768862,43485.0,43479.0,0.20533118]
[1646281486251,0.057535,43485.0,43479.0,0.21033118]
[1646281486455,0.008,43489.0,43481.0,0.95]
[1646281486706,0.008,43489.0,43485.0,0.15840147]
[1646281486900,0.008,43489.0,43486.0,0.3462]
[1646281487099,0.008,43489.0,43487.0,0.28697958]
[1646281487298,0.008,43489.0,43488.0,0.3]
[1646281487498,0.008,43489.0,43488.0,0.46987496]
[1646281488099,0.008,43489.0,43488.0,0.3]
[1646281488399,0.011,43489.0,43488.0,0.3]
[1646281489600,0.008,43489.0,43488.0,0.3]
[1646281491753,0.008,43489.0,43487.0,0.28697958]
[1646281492953,0.008,43489.0,43488.0,0.3]
[1646281494224,0.008,43489.0,43487.0,0.28697958]
[1646281497322,0.008,43489.0,43485.0,0.3]
[1646281497522,0.057531,43488.0,43482.0,0.3]
[1646281498149,0.057531,43488.0,43481.0,0.1136]
[1646281498450,0.06294693,43486.0,43476.0,0.45482706]
[1646281498847,0.05768639,43487.0,43476.0,0.45482706]
[1646281499248,0.05768639,43487.0,43474.0,0.1211]
[1646281499448,0.2971773,43488.0,43480.0,0.27752866]
[1646281499652,0.00015043,43487.0,43480.0,0.27752866]
[1646281500752,0.2971773,43488.0,43480.0,0.27752866]
[1646281500950,0.00015043,43487.0,43480.0,0.27752866]
[1646281501351,0.00015043,43487.0,43480.0,0.28052866]
[1646281501804,0.2971773,43488.0,43480.0,0.28052866]
[1646281502003,0.00015043,43487.0,43480.0,0.27752866]
[1646281502805,0.00015043,43487.0,43481.0,0.3]
[1646281503006,0.057531,43488.0,43482.0,0.18061534]
[1646281503506,0.00015042,43487.0,43482.0,0.18061534]
[1646281504313,0.057531,43488.0,43482.0,0.18061534]
[1646281504508,0.00015043,43487.0,43482.0,0.18061534]
[1646281504811,0.00015043,43487.0,43482.0,0.15309838]
[1646281505010,0.00015043,43487.0,43482.0,0.15609838]
[1646281505464,0.057531,43488.0,43482.0,0.15609838]
[1646281505666,0.00015043,43487.0,43482.0,0.15609838]
[1646281506165,0.00015043,43487.0,43482.0,0.15309838]
[1646281506571,0.057531,43488.0,43482.0,0.15309838]
[1646281506969,0.00015043,43487.0,43482.0,0.15309838]
[1646281507866,0.047531,43488.0,43482.0,0.15309838]
[1646281508067,0.00015043,43487.0,43482.0,0.15309838]
[1646281508969,0.047531,43488.0,43482.0,0.15309838]
[1646281509209,0.047531,43488.0,43487.0,6e-05]
[1646281509411,0.047531,43488.0,43487.0,0.24616717]
[1646281510415,0.047531,43488.0,43487.0,0.43118907]
[1646281511013,0.047531,43488.0,43487.0,0.24916717]
[1646281512311,0.047531,43488.0,43487.0,0.24616717]
[1646281512516,0.008,43489.0,43487.0,0.54616717]
[1646281512713,0.008,43489.0,43488.0,0.3]
[1646281513277,0.008,43489.0,43488.0,0.86096886]
[1646281513469,0.001,43492.0,43490.0,0.3556]
[1646281513670,0.001,43492.0,43491.0,0.45256739]
[1646281513868,0.001,43492.0,43491.0,0.70256739]
[1646281514071,0.001,43492.0,43491.0,0.3462]
[1646281515172,0.001,43492.0,43491.0,0.45256739]
[1646281516818,0.001,43492.0,43491.0,0.70256739]
[1646281517019,0.001,43492.0,43491.0,0.70656739]
[1646281517622,0.001,43492.0,43491.0,0.45656739]
[1646281518321,0.001,43492.0,43491.0,0.45256739]
[1646281518720,0.001,43492.0,43491.0,0.15256739]
[1646281519322,0.001,43492.0,43491.0,0.0462]
[1646281519821,0.001,43492.0,43491.0,0.3462]
[1646281520021,0.001,43492.0,43491.0,0.0462]
[1646281520862,0.001,43492.0,43487.0,0.24610717]
[1646281521160,0.001,43492.0,43491.0,0.004]
[1646281521759,0.116057,43492.0,43491.0,0.004]
[1646281522458,0.116057,43492.0,43487.0,0.3]
[1646281522658,0.001,43492.0,43487.0,0.3]
[1646281523061,0.001,43492.0,43489.0,0.18027407]
[1646281523259,0.001,43492.0,43487.0,0.303]
[1646281523459,0.001,43492.0,43488.0,0.21010454]
[1646281524606,0.001,43492.0,43490.0,0.03605]
[1646281524809,0.001,43492.0,43491.0,0.89650743]
[1646281524810,0.00110521,43492.0,43491.0,0.89650743]
[1646281525608,0.00110521,43492.0,43491.0,0.70840147]
[1646281525808,0.001,43492.0,43491.0,0.40636739]
[1646281526607,0.001,43492.0,43491.0,0.59875612]
[1646281527005,0.00086656,43492.0,43491.0,0.59875612]
[1646281527407,0.00086656,43492.0,43491.0,0.40636739]
[1646281528446,0.05754391,43496.0,43492.0,0.95]
[1646281528848,0.002,43496.0,43494.0,0.15840147]
[1646281529249,0.002,43496.0,43495.0,0.3]
[1646281530447,0.002,43496.0,43494.0,0.15491565]
[1646281530647,0.002,43496.0,43495.0,0.3]
[1646281530854,0.002,43496.0,43495.0,1.16400147]
[1646281531050,0.002,43496.0,43495.0,0.80840147]
[1646281531448,0.0017343,43496.0,43495.0,0.80840147]
[1646281531698,0.0017343,43496.0,43495.0,0.85460147]
[1646281532903,0.0017343,43496.0,43495.0,0.40840147]
[1646281533306,0.0017343,43496.0,43490.0,0.004]
[1646281533506,0.0017343,43496.0,43495.0,0.15840147]
[1646281533703,0.0017343,43496.0,43490.0,0.104]
[1646281533903,0.0017343,43496.0,43493.0,0.17212703]
[1646281535104,0.0017343,43496.0,43493.0,0.17412703]
[1646281536258,0.0017343,43496.0,43493.0,0.17212703]
[1646281536455,0.0017343,43496.0,43494.0,0.3]
[1646281536661,0.0017343,43496.0,43494.0,0.357506]
[1646281536859,0.0017343,43496.0,43495.0,0.3]
[1646281537457,0.0017343,43496.0,43495.0,0.70840147]
[1646281537656,0.0017343,43496.0,43495.0,0.80840147]
[1646281538056,0.0017343,43496.0,43495.0,0.70840147]
[1646281539104,0.0017343,43496.0,43495.0,0.71240147]
[1646281540305,0.0017343,43496.0,43495.0,0.70840147]
[1646281541106,0.0017343,43496.0,43495.0,0.71240147]
[1646281542406,0.0017343,43496.0,43495.0,0.70840147]
[1646281543048,0.0017343,43496.0,43495.0,0.71240147]
[1646281543248,0.0017343,43496.0,43495.0,0.71246147]
[1646281543448,0.0017343,43496.0,43495.0,1.06806147]
[1646281544251,0.0017343,43496.0,43495.0,0.71246147]
[1646281544948,0.0017343,43496.0,43495.0,1.06406147]
[1646281545349,0.0017343,43496.0,43495.0,1.11026147]
[1646281547208,0.0017343,43496.0,43495.0,1.11426147]
[1646281548007,0.0017343,43496.0,43495.0,0.81426147]
[1646281548406,0.0017343,43496.0,43495.0,0.81026147]
[1646281549008,0.0017343,43496.0,43495.0,0.81020147]
[1646281549210,0.0017343,43496.0,43495.0,0.56520147]
[1646281549414,0.0017343,43496.0,43495.0,0.3606]
[1646281549915,0.248777,43498.0,43497.0,0.1962657]
[1646281549916,0.24766668,43498.0,43497.0,0.1962657]
[1646281550108,0.247777,43498.0,43497.0,0.1962657]
[1646281550355,0.547777,43498.0,43497.0,0.1962657]
[1646281550555,0.247777,43498.0,43497.0,0.1962657]
[1646281551254,0.24966668,43498.0,43497.0,0.1962657]
[1646281552255,0.54966668,43498.0,43497.0,0.1962657]
[1646281553057,0.59586668,43498.0,43497.0,0.1962657]
[1646281553260,0.59386668,43498.0,43497.0,0.1962657]
[1646281554615,0.29386668,43498.0,43497.0,0.1962657]
[1646281554811,0.24766668,43498.0,43497.0,0.1962657]
[1646281555214,0.25166668,43498.0,43497.0,0.1962657]
[1646281556411,0.24766668,43498.0,43497.0,0.1962657]
[1646281557218,0.001,43499.0,43497.0,0.1962657]
[1646281558356,0.001,43499.0,43497.0,0.1960992]
[1646281561815,0.38317446,43499.0,43497.0,0.1960992]
[1646281562317,0.3,43498.0,43497.0,0.1066365]
[1646281562522,0.3,43498.0,43481.0,0.4338]
[1646281562523,0.02303,43497.0,43482.0,0.1198]
[1646281562719,0.05753743,43494.0,43492.0,0.01864734]
[1646281563615,0.057477,43493.0,43492.0,0.01864734]
[1646281564817,0.08136224,43493.0,43492.0,0.01864734]
[1646281565020,0.08136224,43493.0,43492.0,0.01678261]
[1646281565217,0.02388524,43493.0,43492.0,0.01678261]
[1646281567262,0.02788524,43493.0,43492.0,0.01678261]
[1646281567463,0.32788524,43493.0,43492.0,0.01678261]
[1646281567864,0.43088524,43493.0,43492.0,0.01678261]
[1646281568064,0.43088524,43493.0,43489.0,0.01678261]
[1646281568265,0.08142424,43492.0,43489.0,0.01678261]
[1646281568564,0.02388524,43491.0,43489.0,0.01678261]
[1646281569914,0.02388524,43490.0,43489.0,0.01678261]
[1646281570317,0.02388524,43492.0,43489.0,0.01678261]
[1646281570516,0.02388524,43491.0,43489.0,0.01678261]
[1646281570716,0.02388524,43490.0,43489.0,0.01678261]
[1646281571214,0.02388524,43492.0,43489.0,0.01678261]
[1646281572315,0.057536,43491.0,43489.0,0.01678261]
[1646281572516,0.02388524,43490.0,43489.0,0.01678261]
[1646281574861,0.02388524,43490.0,43489.0,0.01501832]
[1646281575364,0.32388524,43490.0,43489.0,0.01501832]
[1646281575665,0.32782524,43490.0,43489.0,0.01501832]
[1646281576717,0.32382524,43490.0,43489.0,0.01501832]
[1646281576915,0.02382524,43490.0,43489.0,0.01501832]
[1646281577816,0.02303,43492.0,43478.0,0.44099784]
[1646281578017,0.33410304,43489.0,43478.0,0.44099784]
[1646281578417,0.33410304,43490.0,43480.0,0.19769283]
[1646281578819,0.33410304,43490.0,43489.0,0.01501832]
[1646281579220,0.23198816,43491.0,43489.0,0.01501832]
[1646281581471,0.28952583,43491.0,43489.0,0.01501832]
[1646281581869,0.23198816,43491.0,43489.0,0.01501832]
[1646281583572,0.23498816,43491.0,43489.0,0.01501832]
[1646281584811,0.23198816,43491.0,43489.0,0.01501832]
[1646281585011,0.23198816,43491.0,43489.0,0.01324193]
[1646281585212,0.34706666,43491.0,43489.0,0.01324193]
[1646281585611,0.35106666,43491.0,43489.0,0.01324193]
[1646281586911,0.34706666,43491.0,43489.0,0.01324193]
[1646281587512,0.34706666,43491.0,43490.0,6e-05]
[1646281587711,0.44706666,43491.0,43490.0,6e-05]
[1646281588172,0.74706666,43491.0,43490.0,6e-05]
[1646281588870,0.44706666,43491.0,43490.0,6e-05]
[1646281589269,0.33198816,43491.0,43490.0,6e-05]
[1646281590670,0.36271641,43491.0,43490.0,6e-05]
[1646281591071,0.55,43490.0,43489.0,0.01313543]
[1646281591277,0.68072825,43490.0,43489.0,0.01313543]
[1646281593822,0.13072825,43490.0,43489.0,0.01313543]
[1646281594622,0.03072825,43490.0,43489.0,0.01313543]
[1646281595120,0.03066825,43490.0,43489.0,0.01313543]
[1646281595355,0.03066825,43493.0,43489.0,0.01313543]
[1646281595556,0.25523688,43493.0,43492.0,0.01313543]
[1646281595957,0.25523688,43493.0,43492.0,0.01036562]
[1646281596159,0.004,43495.0,43492.0,0.01036562]
[1646281596756,0.1,43495.0,43492.0,0.01036562]
[1646281597357,0.21637659,43494.0,43492.0,0.01036562]
[1646281599515,0.22037659,43494.0,43492.0,0.01036562]
[1646281600715,0.004,43494.0,43492.0,0.01036562]
[1646281600915,0.48218433,43495.0,43492.0,0.01036562]
[1646281601520,0.48618433,43495.0,43492.0,0.01036562]
[1646281602315,0.26651468,43494.0,43492.0,0.01036562]
[1646281602516,0.64869901,43494.0,43492.0,0.01036562]
[1646281603157,0.38218433,43493.0,43492.0,0.01036562]
[1646281604160,0.48208433,43493.0,43492.0,0.01036562]
[1646281604357,0.0999,43493.0,43492.0,0.01036562]
[1646281605159,0.3999,43493.0,43492.0,0.01036562]
[1646281605574,0.5039,43493.0,43492.0,0.01036562]
[1646281605759,0.05753864,43490.0,43488.0,0.01036562]
[1646281606059,0.05753864,43490.0,43488.0,0.00805174]
[1646281606060,0.38220942,43489.0,43488.0,0.00805174]
[1646281606459,0.68220942,43489.0,43488.0,0.00805174]
[1646281607109,0.4,43489.0,43488.0,0.00805174]
[1646281607708,0.403,43489.0,43488.0,0.00805174]
[1646281607909,0.45789757,43489.0,43488.0,0.00805174]
[1646281608111,0.57298721,43489.0,43484.0,0.00805174]